fUST/lending_fUST_20240725
["ID","MTS","AMOUNT","RATE_DAILY","PERIOD"]
[333083653,1721850646563,-500.0,0.00013972,2]
[333083654,1721850646572,-1012.69,0.00013972,2]
[333083655,1721850646586,-769.12,0.00013972,2]
[333083656,1721850646599,-500.0,0.00013972,2]
[333083657,1721850646608,-3029.36,0.00013972,2]
[333083658,1721850646618,-213.073696,0.00013972,2]
[333083659,1721850646632,-151.0,0.00013972,2]
[333083660,1721850646644,-500.0,0.00013972,2]
[333083661,1721850646655,-14677.81,0.00013972,2]
[333083662,1721850646665,-500.0,0.00013972,2]
[333083663,1721850646675,-523.58,0.00013972,2]
[333083664,1721850646684,-500.0,0.00013972,2]
[333083665,1721850646693,-151.0,0.00013972,2]
[333083666,1721850646702,-500.0,0.00013972,2]
[333083667,1721850646711,-4716.74,0.00013972,2]
[333083668,1721850646721,-151.0,0.00013972,2]
[333083669,1721850646734,-7717.56,0.00013972,2]
[333083670,1721850646745,-151.0,0.00013972,2]
[333083671,1721850646755,-3192.17,0.00013972,2]
[333083672,1721850646766,-500.0,0.00013972,2]
[333083673,1721850646775,-151.0,0.00013972,2]
[333083674,1721850646784,-500.0,0.00013972,2]
[333083675,1721850646794,-1923.92,0.00013972,2]
[333083676,1721850646803,-500.0,0.00013972,2]
[333083677,1721850646812,-500.0,0.00013972,2]
[333083678,1721850646822,-12185.77,0.00013972,2]
[333083679,1721850646833,-4977.05,0.00013972,2]
[333083680,1721850646842,-582.58,0.00013972,2]
[333083681,1721850646851,-3109.37,0.00013972,2]
[333083682,1721850646860,-500.0,0.00013972,2]
[333083683,1721850646869,-500.0,0.00013972,2]
[333083684,1721850646879,-154.086814,0.00013972,2]
[333083685,1721850646888,-957.09,0.00013972,2]
[333083686,1721850646897,-154.086814,0.00013972,2]
[333083687,1721850646907,-692.74,0.00013972,2]
[333083688,1721850646917,-423.36915554,0.00013972,2]
[333083689,1721850646926,-500.0,0.00013972,2]
[333083690,1721850646936,-500.0,0.00013972,2]
[333083691,1721850646945,-500.0,0.00013972,2]
[333083692,1721850646955,-2239.82,0.00013972,2]
[333083693,1721850646964,-879.7,0.00013972,2]
[333083694,1721850646977,-698.35,0.00013972,2]
[333083695,1721850646986,-500.0,0.00013972,2]
[333083696,1721850646996,-2225.52,0.00013972,2]
[333083697,1721850647008,-2007.44,0.00013972,2]
[333083698,1721850647018,-500.0,0.00013972,2]
[333083699,1721850647029,-500.0,0.00013972,2]
[333083700,1721850647039,-500.0,0.00013972,2]
[333083701,1721850647050,-500.0,0.00013972,2]
[333083702,1721850647059,-500.0,0.00013972,2]
[333083703,1721850647069,-1085.55,0.00013972,2]
[333083704,1721850647079,-500.0,0.00013972,2]
[333083705,1721850647093,-500.0,0.00013972,2]
[333083706,1721850647102,-500.0,0.00013972,2]
[333083707,1721850647111,-500.0,0.00013972,2]
[333083708,1721850647120,-992.57,0.00013972,2]
[333083709,1721850647130,-741.05,0.00013972,2]
[333083710,1721850647139,-967.71,0.00013972,2]
[333083711,1721850647149,-892.06,0.00013972,2]
[333083712,1721850647158,-319.68635329,0.00013972,2]
[333083713,1721850647168,-6019.92,0.00013972,2]
[333083714,1721850647178,-500.0,0.00013972,2]
[333083715,1721850647188,-1376.06,0.00013972,2]
[333083716,1721850647198,-500.0,0.00013972,2]
[333083717,1721850647208,-151.0,0.00013972,2]
[333083718,1721850647217,-151.0,0.00013972,2]
[333083719,1721850647227,-2158.27,0.00013972,2]
[333083720,1721850647238,-9095.04,0.00013972,2]
[333083721,1721850647248,-151.0,0.00013972,2]
[333083722,1721850647257,-151.0,0.00013972,2]
[333083723,1721850647267,-2201.47,0.00013972,2]
[333083724,1721850647277,-500.0,0.00013972,2]
[333083725,1721850647287,-500.0,0.00013972,2]
[333083726,1721850647299,-5237.38,0.00013972,2]
[333083727,1721850647309,-536.29,0.00013972,2]
[333083728,1721850647320,-1416.93,0.00013972,2]
[333083729,1721850647329,-500.0,0.00013972,2]
[333083730,1721850647340,-780.62,0.00013972,2]
[333083731,1721850647350,-423.133958,0.00013972,2]
[333083732,1721850647361,-423.133958,0.00013972,2]
[333083733,1721850647370,-2522.0,0.00013972,2]
[333083734,1721850647380,-533.06,0.00013972,2]
[333083735,1721850647390,-423.133958,0.00013972,2]
[333083736,1721850647400,-423.133958,0.00013972,2]
[333083737,1721850647409,-500.0,0.00013972,2]
[333083738,1721850647421,-1601.95,0.00013972,2]
[333083739,1721850647431,-500.0,0.00013972,2]
[333083740,1721850647442,-4750.42,0.00013972,2]
[333083741,1721850647454,-150.112233,0.00014,2]
[333083742,1721850647464,-1059.999999,0.00014,2]
[333083743,1721850647473,-150.112233,0.000142,2]
[333083744,1721850647483,-43135.53253091,0.00014236,5]
[333083745,1721850647493,-6733.16356761,0.00014236,2]
[333083746,1721850647503,-151.0,0.00014246,2]
[333083747,1721850647512,-500.0,0.00014246,2]
[333083748,1721850647522,-151.0,0.00014246,2]
[333083749,1721850647531,-151.0,0.00014246,2]
[333083750,1721850647542,-151.0,0.00014246,2]
[333083751,1721850647552,-151.0,0.00014246,2]
[333083752,1721850647561,-500.0,0.00014246,2]
[333083753,1721850647573,-500.0,0.00014246,2]
[333083754,1721850647585,-500.0,0.00014246,2]
[333083755,1721850647598,-500.0,0.00014246,2]
[333083756,1721850647609,-500.0,0.00014246,2]
[333083757,1721850647622,-500.0,0.00014246,2]
[333083758,1721850647633,-749.43,0.00014246,2]
[333083759,1721850647644,-500.0,0.00014246,2]
[333083760,1721850647655,-500.0,0.00014246,2]
[333083761,1721850647666,-501.61,0.00014246,2]
[333083762,1721850647676,-1262.06,0.00014246,2]
[333083763,1721850647686,-500.0,0.00014246,2]
[333083764,1721850647696,-500.0,0.00014246,2]
[333083765,1721850647706,-1504.94,0.00014246,2]
[333083766,1721850647717,-151.0,0.00014246,2]
[333083767,1721850647729,-500.0,0.00014246,2]
[333083768,1721850647740,-500.0,0.00014246,2]
[333083769,1721850647752,-500.0,0.00014246,2]
[333083770,1721850647761,-500.0,0.00014246,2]
[333083771,1721850647771,-625.78,0.00014246,2]
[333083772,1721850647781,-500.0,0.00014246,2]
[333083773,1721850647840,-2472.9,0.00014246,2]
[333083774,1721850647955,-507.96,0.00014246,2]
[333083775,1721850648024,-500.0,0.00014246,2]
[333083776,1721850648151,-500.0,0.00014246,2]
[333083777,1721850648278,-500.0,0.00014246,2]
[333083778,1721850648370,-500.0,0.00014246,2]
[333083779,1721850648464,-685.82,0.00014246,2]
[333083780,1721850648546,-500.0,0.00014246,2]
[333083781,1721850648594,-520.28,0.00014246,2]
[333083782,1721850648605,-539.7,0.00014246,2]
[333083783,1721850648615,-500.0,0.00014246,2]
[333083784,1721850648627,-3213.07,0.00014246,2]
[333083785,1721850648638,-217.78729524,0.00014246,2]
[333083786,1721850648647,-616.93753203,0.00014246,2]
[333083787,1721850648657,-558.85,0.00014246,2]
[333083788,1721850648670,-500.0,0.00014246,2]
[333083789,1721850648681,-500.0,0.00014246,2]
[333083790,1721850648690,-500.0,0.00014246,2]
[333083791,1721850648703,-1263.71,0.00014246,2]
[333083792,1721850648714,-1948.13,0.00014246,2]
[333083793,1721850648724,-285.67854041,0.00014246,2]
[333083794,1721850648735,-677.08,0.00014246,2]
[333083795,1721850648746,-1499.07,0.00014246,2]
[333083796,1721850648755,-500.0,0.00014246,2]
[333083797,1721850648766,-500.0,0.00014246,2]
[333083798,1721850648778,-500.0,0.00014246,2]
[333083799,1721850648788,-500.0,0.00014246,2]
[333083800,1721850648799,-756.75,0.00014246,2]
[333083801,1721850648809,-164.885157,0.00014246,2]
[333083802,1721850648820,-164.885157,0.00014246,2]
[333083803,1721850648831,-544.45,0.00014246,2]
[333083804,1721850648842,-510.11534905,0.00014246,2]
[333083805,1721850648853,-164.885157,0.00014246,2]
[333083806,1721850648862,-164.885157,0.00014246,2]
[333083807,1721850648872,-739.37,0.00014246,2]
[333083808,1721850648881,-2024.68,0.00014246,2]
[333083809,1721850648891,-537.1,0.00014246,2]
[333083810,1721850648901,-500.0,0.00014246,2]
[333083811,1721850648911,-500.0,0.00014246,2]
[333083812,1721850648920,-1175.75,0.00014246,2]
[333083813,1721850648930,-500.0,0.00014246,2]
[333083814,1721850648939,-694.78,0.00014246,2]
[333083815,1721850648950,-500.0,0.00014246,2]
[333083816,1721850648960,-1764.56,0.00014246,2]
[333083817,1721850648970,-788.29,0.00014246,2]
[333083818,1721850648979,-500.0,0.00014246,2]
[333083819,1721850648989,-500.0,0.00014246,2]
[333083820,1721850648999,-1720.25,0.00014246,2]
[333083821,1721850649009,-500.0,0.00014246,2]
[333083822,1721850649019,-500.0,0.00014246,2]
[333083823,1721850649030,-541.8536978,0.00014246,2]
[333083824,1721850649040,-1627.5,0.00014246,2]
[333083825,1721850649051,-589.95,0.00014246,2]
[333083826,1721850649061,-609.45168929,0.00014246,2]
[333083827,1721850649071,-500.0,0.00014246,2]
[333083828,1721850649082,-501.0,0.00014246,2]
[333083829,1721850649094,-1474.96,0.00014246,2]
[333083830,1721850649107,-151.0,0.00014246,2]
[333083831,1721850649117,-151.0,0.00014246,2]
[333083832,1721850649127,-554.49,0.00014246,2]
[333083833,1721850649136,-500.0,0.00014246,2]
[333083834,1721850649145,-1840.05,0.00014246,2]
[333083835,1721850649155,-500.0,0.00014246,2]
[333083836,1721850649164,-500.0,0.00014246,2]
[333083837,1721850649173,-823.57,0.00014246,2]
[333083838,1721850649184,-500.0,0.00014246,2]
[333083839,1721850649194,-595.16,0.00014246,2]
[333083840,1721850649204,-151.0,0.00014246,2]
[333083841,1721850649215,-151.0,0.00014246,2]
[333083842,1721850649226,-500.0,0.00014246,2]
[333083843,1721850649237,-151.0,0.00014246,2]
[333083844,1721850649247,-1277.13,0.00014246,2]
[333083845,1721850649257,-500.0,0.00014246,2]
[333083846,1721850649268,-500.0,0.00014246,2]
[333083847,1721850649279,-500.0,0.00014246,2]
[333083848,1721850649291,-500.0,0.00014246,2]
[333083849,1721850649301,-500.0,0.00014246,2]
[333083850,1721850649313,-151.0,0.00014246,2]
[333083851,1721850649323,-520.41,0.00014246,2]
[333083852,1721850649334,-1240.79,0.00014246,2]
[333083853,1721850649344,-500.0,0.00014246,2]
[333083854,1721850649354,-2285.96,0.00014246,2]
[333083855,1721850649364,-590.12,0.00014246,2]
[333083856,1721850649373,-1494.18,0.00014246,2]
[333083857,1721850649384,-500.0,0.00014246,2]
[333083858,1721850649393,-500.0,0.00014246,2]
[333083859,1721850649403,-663.1,0.00014246,2]
[333083860,1721850649413,-151.0,0.00014246,2]
[333083861,1721850649423,-151.0,0.00014246,2]
[333083862,1721850649434,-151.0,0.00014246,2]
[333083863,1721850649445,-151.0,0.00014246,2]
[333083864,1721850649455,-1160.88,0.00014246,2]
[333083865,1721850649465,-1107.41,0.00014246,2]
[333083866,1721850649475,-500.0,0.00014246,2]
[333083867,1721850649486,-500.0,0.00014246,2]
[333083868,1721850649495,-500.0,0.00014246,2]
[333083869,1721850649506,-500.0,0.00014246,2]
[333083870,1721850649517,-1258.7,0.00014246,2]
[333083871,1721850649527,-619.67,0.00014246,2]
[333083872,1721850649537,-585.64766448,0.00014246,2]
[333083873,1721850649547,-500.0,0.00014246,2]
[333083874,1721850649559,-500.0,0.00014246,2]
[333083875,1721850649569,-500.0,0.00014246,2]
[333083876,1721850649580,-438.193726,0.00014246,2]
[333083877,1721850649594,-438.193726,0.00014246,2]
[333083878,1721850649604,-179.862018,0.00014246,2]
[333083879,1721850649614,-168.742074,0.00014246,2]
[333083880,1721850649624,-438.193726,0.00014246,2]
[333083881,1721850649635,-168.742074,0.00014246,2]
[333083882,1721850649645,-151.0,0.00014246,2]
[333083883,1721850649656,-438.193726,0.00014246,2]
[333083884,1721850649667,-168.742074,0.00014246,2]
[333083885,1721850649678,-168.742074,0.00014246,2]
[333083886,1721850649689,-746.57,0.00014246,2]
[333083887,1721850649699,-500.0,0.00014246,2]
[333083888,1721850649710,-1479.7,0.00014246,2]
[333083889,1721850649721,-2001.18,0.00014246,2]
[333083890,1721850649731,-538.31,0.00014246,2]
[333083891,1721850649742,-238.41618817,0.00014246,2]
[333083892,1721850649753,-500.0,0.00014246,2]
[333083893,1721850649765,-11419.3,0.00014246,2]
[333083894,1721850649775,-500.0,0.00014246,2]
[333083895,1721850649786,-500.0,0.00014246,2]
[333083896,1721850649796,-500.0,0.00014246,2]
[333083897,1721850649806,-1896.06,0.00014246,2]
[333083898,1721850649816,-828.87,0.00014246,2]
[333083899,1721850649828,-2470.95,0.00014246,2]
[333083900,1721850649838,-500.0,0.00014246,2]
[333083901,1721850649849,-500.0,0.00014246,2]
[333083902,1721850649861,-1159.3,0.00014246,2]
[333083903,1721850649872,-500.0,0.00014246,2]
[333083904,1721850649882,-849.55,0.00014246,2]
[333083905,1721850649892,-1056.91,0.00014246,2]
[333083906,1721850649903,-500.0,0.00014246,2]
[333083907,1721850649913,-500.0,0.00014246,2]
[333083908,1721850649923,-500.0,0.00014246,2]
[333083909,1721850649933,-981.62,0.00014246,2]
[333083910,1721850649943,-500.0,0.00014246,2]
[333083911,1721850649953,-2275.67,0.00014246,2]
[333083912,1721850649962,-636.17,0.00014246,2]
[333083913,1721850649972,-500.0,0.00014246,2]
[333083914,1721850649983,-500.0,0.00014246,2]
[333083915,1721850649994,-1841.0,0.00014246,2]
[333083916,1721850650003,-500.0,0.00014246,2]
[333083917,1721850650013,-151.0,0.00014246,2]
[333083918,1721850650022,-151.0,0.00014246,2]
[333083919,1721850650032,-151.0,0.00014246,2]
[333083920,1721850650042,-151.0,0.00014246,2]
[333083921,1721850650053,-3188.51,0.00014246,2]
[333083922,1721850650063,-500.0,0.00014246,2]
[333083923,1721850650073,-500.0,0.00014246,2]
[333083924,1721850650224,-1012.69,0.00014246,2]
[333083925,1721850650233,-769.12,0.00014246,2]
[333083926,1721850650243,-3029.36,0.00014246,2]
[333083927,1721850650253,-500.0,0.00014246,2]
[333083928,1721850650263,-14677.81,0.00014246,2]
[333083929,1721850650274,-500.0,0.00014246,2]
[333083930,1721850650283,-523.58,0.00014246,2]
[333083931,1721850650293,-500.0,0.00014246,2]
[333083932,1721850650303,-4716.74,0.00014246,2]
[333083933,1721850650313,-7717.56,0.00014246,2]
[333083934,1721850650325,-3192.17,0.00014246,2]
[333083935,1721850650336,-151.0,0.00014246,2]
[333083936,1721850650345,-151.0,0.00014246,2]
[333083937,1721850650354,-500.0,0.00014246,2]
[333083938,1721850650363,-151.0,0.00014246,2]
[333083939,1721850650372,-151.0,0.00014246,2]
[333083940,1721850650382,-500.0,0.00014246,2]
[333083941,1721850650391,-1923.92,0.00014246,2]
[333083942,1721850650400,-500.0,0.00014246,2]
[333083943,1721850650410,-500.0,0.00014246,2]
[333083944,1721850650419,-4977.05,0.00014246,2]
[333083945,1721850650429,-12185.77,0.00014246,2]
[333083946,1721850650439,-582.58,0.00014246,2]
[333083947,1721850650449,-3109.37,0.00014246,2]
[333083948,1721850650460,-295.1,0.00014246,2]
[333083949,1721850650469,-957.09,0.00014246,2]
[333083950,1721850650478,-154.086814,0.00014246,2]
[333083951,1721850650487,-154.086814,0.00014246,2]
[333083952,1721850650496,-154.086814,0.00014246,2]
[333083953,1721850650505,-154.086814,0.00014246,2]
[333083954,1721850650515,-692.74,0.00014246,2]
[333083955,1721850650524,-500.0,0.00014246,2]
[333083956,1721850650534,-500.0,0.00014246,2]
[333083957,1721850650544,-500.0,0.00014246,2]
[333083958,1721850650553,-2239.82,0.00014246,2]
[333083959,1721850650562,-879.7,0.00014246,2]
[333083960,1721850650571,-698.35,0.00014246,2]
[333083961,1721850650581,-500.0,0.00014246,2]
[333083962,1721850650595,-2225.52,0.00014246,2]
[333083963,1721850650604,-2007.44,0.00014246,2]
[333083964,1721850650613,-540.12057024,0.00014246,2]
[333083965,1721850650622,-500.0,0.00014246,2]
[333083966,1721850650635,-500.0,0.00014246,2]
[333083967,1721850650644,-1085.55,0.00014246,2]
[333083968,1721850650653,-500.0,0.00014246,2]
[333083969,1721850650662,-518.18510307,0.00014246,2]
[333083970,1721850650673,-500.0,0.00014246,2]
[333083971,1721850650682,-500.0,0.00014246,2]
[333083972,1721850650691,-992.57,0.00014246,2]
[333083973,1721850650700,-741.05,0.00014246,2]
[333083974,1721850650709,-967.71,0.00014246,2]
[333083975,1721850650718,-892.06,0.00014246,2]
[333083976,1721850650727,-6019.92,0.00014246,2]
[333083977,1721850650737,-500.0,0.00014246,2]
[333083978,1721850650746,-1376.06,0.00014246,2]
[333083979,1721850650756,-500.0,0.00014246,2]
[333083980,1721850650766,-151.0,0.00014246,2]
[333083981,1721850650777,-151.0,0.00014246,2]
[333083982,1721850650789,-2158.27,0.00014246,2]
[333083983,1721850650799,-9095.04,0.00014246,2]
[333083984,1721850650810,-151.0,0.00014246,2]
[333083985,1721850650820,-151.0,0.00014246,2]
[333083986,1721850650830,-2201.47,0.00014246,2]
[333083987,1721850650842,-505.23021985,0.00014246,2]
[333083988,1721850650853,-5237.38,0.00014246,2]
[333083989,1721850650862,-536.29,0.00014246,2]
[333083990,1721850650871,-1416.93,0.00014246,2]
[333083991,1721850650881,-500.0,0.00014246,2]
[333083992,1721850650891,-780.62,0.00014246,2]
[333083993,1721850650902,-423.133958,0.00014246,2]
[333083994,1721850650914,-423.133958,0.00014246,2]
[333083995,1721850650925,-2522.0,0.00014246,2]
[333083996,1721850650934,-533.06,0.00014246,2]
[333083997,1721850650945,-423.133958,0.00014246,2]
[333083998,1721850650955,-423.133958,0.00014246,2]
[333083999,1721850650964,-500.0,0.00014246,2]
[333084000,1721850650974,-1601.95,0.00014246,2]
[333084001,1721850650985,-568.27,0.00014246,2]
[333084002,1721850650997,-750.0,0.00014247,2]
[333084003,1721850651008,-898.28329132,0.00014255,2]
[333084004,1721850651019,-632.36163544,0.00014292,2]
[333084005,1721850651030,-150.112233,0.000143,2]
[333084006,1721850651040,-160.0,0.00014353,3]
[333084007,1721850651051,-812.67739947,0.00014498,2]
[333084008,1721850651060,-150.112233,0.000145,2]
[333084009,1721850651069,-151.0,0.0001452,2]
[333084010,1721850651078,-151.0,0.0001452,2]
[333084011,1721850651088,-151.0,0.0001452,2]
[333084012,1721850651098,-500.0,0.0001452,2]
[333084013,1721850651107,-500.0,0.0001452,2]
[333084014,1721850651116,-500.0,0.0001452,2]
[333084015,1721850651126,-500.0,0.0001452,2]
[333084016,1721850651135,-500.0,0.0001452,2]
[333084017,1721850651144,-500.0,0.0001452,2]
[333084018,1721850651153,-749.43,0.0001452,2]
[333084019,1721850651163,-500.0,0.0001452,2]
[333084020,1721850651172,-1262.06,0.0001452,2]
[333084021,1721850651184,-500.0,0.0001452,2]
[333084022,1721850651194,-1504.94,0.0001452,2]
[333084023,1721850651205,-151.0,0.0001452,2]
[333084024,1721850651216,-151.0,0.0001452,2]
[333084025,1721850651226,-500.0,0.0001452,2]
[333084026,1721850651237,-500.0,0.0001452,2]
[333084027,1721850651247,-500.0,0.0001452,2]
[333084028,1721850651257,-500.0,0.0001452,2]
[333084029,1721850651268,-625.78,0.0001452,2]
[333084030,1721850651277,-500.0,0.0001452,2]
[333084031,1721850651287,-2472.9,0.0001452,2]
[333084032,1721850651296,-500.0,0.0001452,2]
[333084033,1721850651306,-500.0,0.0001452,2]
[333084034,1721850651315,-500.0,0.0001452,2]
[333084035,1721850651326,-500.0,0.0001452,2]
[333084036,1721850651340,-685.82,0.0001452,2]
[333084037,1721850651351,-500.0,0.0001452,2]
[333084038,1721850651360,-520.28,0.0001452,2]
[333084039,1721850651369,-539.7,0.0001452,2]
[333084040,1721850651380,-482.41493037,0.0001452,2]
[333084041,1721850651390,-3213.07,0.0001452,2]
[333084042,1721850651399,-558.85,0.0001452,2]
[333084043,1721850651408,-500.0,0.0001452,2]
[333084044,1721850651418,-500.0,0.0001452,2]
[333084045,1721850651427,-500.0,0.0001452,2]
[333084046,1721850651436,-1263.71,0.0001452,2]
[333084047,1721850651446,-1948.13,0.0001452,2]
[333084048,1721850651456,-677.08,0.0001452,2]
[333084049,1721850651465,-1499.07,0.0001452,2]
[333084050,1721850651475,-500.0,0.0001452,2]
[333084051,1721850651485,-500.0,0.0001452,2]
[333084052,1721850651495,-500.0,0.0001452,2]
[333084053,1721850651504,-500.0,0.0001452,2]
[333084054,1721850651513,-756.75,0.0001452,2]
[333084055,1721850651522,-164.885157,0.0001452,2]
[333084056,1721850651531,-544.45,0.0001452,2]
[333084057,1721850651540,-164.885157,0.0001452,2]
[333084058,1721850651550,-739.37,0.0001452,2]
[333084059,1721850651559,-2024.68,0.0001452,2]
[333084060,1721850651569,-537.1,0.0001452,2]
[333084061,1721850651578,-500.0,0.0001452,2]
[333084062,1721850651591,-500.0,0.0001452,2]
[333084063,1721850651600,-1175.75,0.0001452,2]
[333084064,1721850651610,-500.0,0.0001452,2]
[333084065,1721850651619,-694.78,0.0001452,2]
[333084066,1721850651629,-500.0,0.0001452,2]
[333084067,1721850651639,-1764.56,0.0001452,2]
[333084068,1721850651648,-788.29,0.0001452,2]
[333084069,1721850651657,-500.0,0.0001452,2]
[333084070,1721850651667,-500.0,0.0001452,2]
[333084071,1721850651677,-1720.25,0.0001452,2]
[333084072,1721850651687,-500.0,0.0001452,2]
[333084073,1721850651697,-500.0,0.0001452,2]
[333084074,1721850651705,-1627.5,0.0001452,2]
[333084075,1721850651715,-589.95,0.0001452,2]
[333084076,1721850651725,-500.0,0.0001452,2]
[333084077,1721850651734,-501.0,0.0001452,2]
[333084078,1721850651744,-1474.96,0.0001452,2]
[333084079,1721850651753,-151.0,0.0001452,2]
[333084080,1721850651762,-554.49,0.0001452,2]
[333084081,1721850651772,-500.0,0.0001452,2]
[333084082,1721850651781,-1840.05,0.0001452,2]
[333084083,1721850651791,-500.0,0.0001452,2]
[333084084,1721850651800,-500.0,0.0001452,2]
[333084085,1721850651809,-823.57,0.0001452,2]
[333084086,1721850651818,-500.0,0.0001452,2]
[333084087,1721850651828,-595.16,0.0001452,2]
[333084088,1721850651838,-500.0,0.0001452,2]
[333084089,1721850651848,-151.0,0.0001452,2]
[333084090,1721850651857,-1277.13,0.0001452,2]
[333084091,1721850651866,-500.0,0.0001452,2]
[333084092,1721850651876,-500.0,0.0001452,2]
[333084093,1721850651885,-500.0,0.0001452,2]
[333084094,1721850651895,-500.0,0.0001452,2]
[333084095,1721850651904,-500.0,0.0001452,2]
[333084096,1721850651914,-520.41,0.0001452,2]
[333084097,1721850651923,-1240.79,0.0001452,2]
[333084098,1721850651937,-500.0,0.0001452,2]
[333084099,1721850651946,-2285.96,0.0001452,2]
[333084100,1721850651956,-590.12,0.0001452,2]
[333084101,1721850651966,-1494.18,0.0001452,2]
[333084102,1721850651976,-500.0,0.0001452,2]
[333084103,1721850651986,-500.0,0.0001452,2]
[333084104,1721850651997,-663.1,0.0001452,2]
[333084105,1721850652009,-151.0,0.0001452,2]
[333084106,1721850652018,-151.0,0.0001452,2]
[333084107,1721850652027,-1160.88,0.0001452,2]
[333084108,1721850652037,-1107.41,0.0001452,2]
[333084109,1721850652046,-500.0,0.0001452,2]
[333084110,1721850652056,-500.0,0.0001452,2]
[333084111,1721850652065,-500.0,0.0001452,2]
[333084112,1721850652076,-500.0,0.0001452,2]
[333084113,1721850652087,-1258.7,0.0001452,2]
[333084114,1721850652096,-619.67,0.0001452,2]
[333084115,1721850652106,-500.0,0.0001452,2]
[333084116,1721850652115,-500.0,0.0001452,2]
[333084117,1721850652125,-500.0,0.0001452,2]
[333084118,1721850652134,-438.193726,0.0001452,2]
[333084119,1721850652144,-168.742074,0.0001452,2]
[333084120,1721850652153,-438.193726,0.0001452,2]
[333084121,1721850652162,-168.742074,0.0001452,2]
[333084122,1721850652171,-746.57,0.0001452,2]
[333084123,1721850652181,-500.0,0.0001452,2]
[333084124,1721850652190,-1479.7,0.0001452,2]
[333084125,1721850652199,-2001.18,0.0001452,2]
[333084126,1721850652208,-538.31,0.0001452,2]
[333084127,1721850652218,-11419.3,0.0001452,2]
[333084128,1721850652227,-500.0,0.0001452,2]
[333084129,1721850652237,-500.0,0.0001452,2]
[333084130,1721850652249,-500.0,0.0001452,2]
[333084131,1721850652259,-1896.06,0.0001452,2]
[333084132,1721850652268,-828.87,0.0001452,2]
[333084133,1721850652277,-2470.95,0.0001452,2]
[333084134,1721850652287,-500.0,0.0001452,2]
[333084135,1721850652296,-500.0,0.0001452,2]
[333084136,1721850652305,-1159.3,0.0001452,2]
[333084137,1721850652315,-500.0,0.0001452,2]
[333084138,1721850652324,-849.55,0.0001452,2]
[333084139,1721850652336,-1056.91,0.0001452,2]
[333084140,1721850652345,-500.0,0.0001452,2]
[333084141,1721850652356,-500.0,0.0001452,2]
[333084142,1721850652367,-500.0,0.0001452,2]
[333084143,1721850652377,-981.62,0.0001452,2]
[333084144,1721850652388,-500.0,0.0001452,2]
[333084145,1721850652401,-2275.67,0.0001452,2]
[333084146,1721850652411,-636.17,0.0001452,2]
[333084147,1721850652421,-500.0,0.0001452,2]
[333084148,1721850652430,-500.0,0.0001452,2]
[333084149,1721850652439,-1841.0,0.0001452,2]
[333084150,1721850652448,-500.0,0.0001452,2]
[333084151,1721850652458,-151.0,0.0001452,2]
[333084152,1721850652467,-151.0,0.0001452,2]